bitfinex-derivatives/quotes_ETHF0:USTF0_20250205
["timestamp","ask_amount","ask_price","bid_price","bid_amount"]
[1738737521865,0.00100076,2755.8,2755.4,3.2078]
[1738737523167,3.67831696,2756.5,2755.7,3.2078]
[1738737523471,3.67831696,2756.5,2755.8,1.1052]
[1738737523668,3.10961696,2756.5,2755.8,1.1052]
[1738737524465,0.00543527,2756.4,2755.8,1.1052]
[1738737526464,0.00543527,2756.4,2755.9,3.7638]
[1738737526867,3.10961696,2756.2,2755.9,3.2078]
[1738737527274,3.68986696,2756.2,2755.6,3.2078]
[1738737527471,3.10961696,2755.9,2755.6,3.2078]
[1738737527769,3.10961696,2756.2,2755.6,3.2078]
[1738737529271,3.2078,2755.7,2755.2,0.5718]
[1738737529571,6.31741696,2755.3,2754.7,1.1484]
[1738737529778,3.10961696,2754.9,2754.7,1.1484]
[1738737530278,3.10961696,2757.0,2754.9,3.2078]
[1738737530469,3.2078,2756.9,2756.2,3.2078]
[1738737530774,3.2078,2756.9,2756.1,3.2078]
[1738737530972,0.5854,2756.8,2756.1,3.2078]
[1738737532078,0.5414,2756.7,2756.1,3.2078]
[1738737532376,3.21323527,2756.4,2755.7,3.2078]
[1738737532773,0.00543527,2756.4,2755.7,3.2078]
[1738737534174,0.00543527,2756.4,2756.0,3.2078]
[1738737542184,0.00543527,2756.4,2756.1,3.2078]
[1738737542481,0.00543527,2756.4,2756.1,6.31741696]
[1738737544681,0.5598,2757.8,2756.2,7.852]
[1738737544886,0.5598,2757.8,2757.2,3.2078]
[1738737545885,0.5598,2757.8,2757.2,3.21323527]
[1738737545886,0.00543527,2757.8,2757.2,3.21323527]
[1738737547883,0.00543527,2757.8,2757.3,0.5323]
[1738737548685,0.00543527,2757.8,2757.5,3.2078]
[1738737549386,3.2078,2757.7,2757.2,0.00543527]
[1738737549587,0.00543527,2757.8,2757.2,0.00543527]
[1738737549882,0.00543527,2757.8,2757.4,3.2078]
[1738737550085,0.57996,2757.6,2757.2,0.00543527]
[1738737550283,0.5879,2757.5,2757.2,0.00543527]
[1738737550485,1.1557,2757.5,2757.2,0.00543527]
[1738737557385,3.2078,2757.3,2757.2,0.00543527]
[1738737557588,3.78782,2757.3,2756.7,3.2078]
[1738737557986,3.2078,2757.3,2756.7,3.2078]
[1738737558186,0.58004,2757.2,2756.7,3.2078]
[1738737558686,3.2078,2756.8,2756.7,0.00100076]
[1738737558894,3.2078,2756.8,2755.9,3.2078]
[1738737558895,3.78793,2756.8,2755.9,3.2078]
[1738737559089,1.1279,2756.7,2755.9,3.2078]
[1738737560193,3.2078,2757.2,2756.3,2.48408642]
[1738737560396,3.2078,2755.4,2753.5,11.0628]
[1738737560689,0.581,2752.7,2752.0,11.08847644]
[1738737560889,3.2078,2752.2,2751.8,6.61061784]
[1738737561095,3.12507978,2751.9,2751.8,6.61061784]
[1738737561291,6.33287978,2751.9,2751.8,6.61061784]
[1738737562296,11.33287978,2751.9,2751.5,12.01823079]
[1738737562492,3.2078,2751.6,2751.5,12.01823079]
[1738737562697,7.19973365,2751.6,2751.5,10.95631779]
[1738737562994,7.19973365,2751.6,2751.4,16.16463377]
[1738737562995,0.58123,2751.5,2751.4,16.16463377]
[1738737563194,0.58123,2751.5,2749.5,0.5843]
[1738737563195,11.61852365,2751.6,2749.5,3.2078]
[1738737563393,3.2078,2750.3,2750.0,7.26339469]
[1738737563595,3.2078,2750.3,2749.0,0.5359]
[1738737563891,3.41072365,2750.4,2748.5,3.2078]
[1738737563892,3.2078,2749.6,2748.5,3.2078]
[1738737564193,3.2078,2749.3,2749.1,7.26339469]
[1738737564385,3.2078,2749.6,2749.4,7.26339469]
[1738737564585,3.2078,2749.6,2749.2,7.26339469]
[1738737564789,3.2078,2749.3,2749.0,7.26339469]
[1738737565192,3.2078,2749.3,2748.5,3.2078]
[1738737565386,3.2078,2749.3,2748.7,7.26339469]
[1738737565590,3.2078,2749.3,2749.0,7.26339469]
[1738737566196,3.2078,2749.3,2748.3,3.2078]
[1738737566393,3.2078,2749.0,2748.9,7.26339469]
[1738737567295,3.2078,2749.0,2748.3,3.2078]
[1738737567493,3.2078,2749.0,2748.8,7.26339469]
[1738737567698,3.2078,2749.0,2748.6,7.26339469]
[1738737567889,3.2078,2748.7,2748.6,7.26339469]
[1738737568691,3.2078,2749.0,2748.6,9.85941248]
[1738737568894,3.2078,2749.0,2748.9,7.26339469]
[1738737569398,3.2078,2749.0,2748.0,3.2078]
[1738737569702,1.456,2749.5,2746.9,3.2078]
[1738737569703,6.61852365,2748.1,2746.9,3.2078]
[1738737569993,3.2078,2747.6,2747.5,7.26339469]
[1738737570199,3.2078,2747.6,2746.9,3.2078]
[1738737570496,3.2078,2747.6,2747.5,7.26339469]
[1738737570996,0.00545574,2747.8,2747.5,9.85941248]
[1738737571193,0.00545574,2747.8,2747.7,7.26339469]
[1738737571594,0.00545574,2747.8,2747.7,9.85941248]
[1738737573189,0.00545574,2747.8,2747.7,7.26339469]
[1738737574496,0.00545574,2747.8,2747.7,9.85941248]
[1738737574896,0.00545574,2747.8,2744.1,3.631]
[1738737574897,3.2078,2746.5,2744.1,3.631]
[1738737575196,6.61852365,2744.2,2741.8,3.2078]
[1738737575398,3.2078,2742.9,2742.1,3.2078]
[1738737575898,3.2078,2743.2,2742.5,0.04979203]
[1738737576100,0.00546767,2743.3,2742.8,3.2078]
[1738737576298,0.00546767,2743.3,2743.1,3.2078]
[1738737576497,0.00546767,2743.3,2743.0,3.2078]
[1738737576795,3.2078,2744.1,2743.1,0.04979203]
[1738737576995,3.2078,2743.9,2743.1,0.04979203]
[1738737577199,3.41072365,2744.7,2743.1,0.04979203]
[1738737577200,3.2078,2743.6,2743.1,0.04979203]
[1738737577401,3.41072365,2744.7,2743.1,0.04979203]
[1738737577402,3.2078,2743.3,2743.1,0.04979203]
[1738737577790,3.2078,2743.3,2742.7,3.2078]
[1738737577791,3.2078,2743.3,2743.2,0.04979203]
[1738737579001,8.2078,2743.3,2743.2,0.04979203]
[1738737579303,3.2078,2743.3,2743.2,0.04979203]
[1738737581605,0.00546767,2743.5,2743.2,0.04979203]
[1738737581794,3.2078,2743.6,2743.3,0.04979203]
[1738737581998,3.2078,2743.6,2743.4,0.07961719]
[1738737582508,3.2078,2743.6,2743.5,0.08558385]
[1738737582903,3.2078,2744.3,2743.5,6.78158385]
[1738737583205,0.00546767,2743.8,2743.5,4.98938385]
[1738737583409,0.00546767,2743.8,2743.5,3.29338385]
[1738737583596,0.00546767,2743.8,2743.6,0.08558385]
[1738737583799,3.2078,2744.3,2743.6,0.08558385]
[1738737584003,3.2078,2744.7,2743.9,3.2078]
[1738737584710,3.2078,2744.7,2744.3,0.08558385]
[1738737585111,0.00546767,2744.6,2744.3,0.08558385]
[1738737585308,3.11908166,2744.4,2744.0,0.00546767]
[1738737585806,0.00546767,2744.6,2744.0,5.00546767]
[1738737586002,0.00546767,2744.6,2744.0,3.79608767]
[1738737586211,3.2078,2744.4,2744.3,0.01086572]
[1738737586906,3.631,2741.7,2739.3,3.2078]
[1738737587107,3.27662,2743.8,2738.3,0.3648]
[1738737587108,3.2078,2740.3,2739.4,3.2078]
[1738737587310,3.2078,2740.6,2739.4,3.7916]
[1738737587501,3.2078,2740.6,2740.0,3.2078]
[1738737587704,3.2078,2741.2,2740.3,3.2078]
[1738737588110,3.41072365,2742.8,2740.2,0.58363]
[1738737588111,3.2078,2741.6,2740.9,3.2078]
[1738737588306,3.2078,2741.6,2741.0,1.9016]
[1738737588515,3.41072365,2742.8,2741.0,1.9016]
[1738737588516,3.2078,2741.9,2741.1,3.79122]
[1738737588716,3.2078,2741.9,2741.1,3.2814]
[1738737588911,3.2078,2742.6,2741.7,3.2078]
[1738737589214,3.2078,2743.9,2742.5,3.2078]
[1738737589513,3.2078,2743.9,2743.2,3.2078]
[1738737589809,3.2078,2743.6,2742.9,5.0828]
[1738737590037,3.2078,2743.3,2742.9,0.0736]
[1738737590717,0.00546767,2743.4,2742.9,0.0736]
[1738737591017,0.00546767,2743.4,2743.0,0.0736]
[1738737591522,3.2078,2744.4,2743.3,6.61852365]
[1738737591812,3.2078,2744.7,2744.3,3.41072365]
[1738737592206,3.2078,2745.5,2744.6,3.7905]
[1738737592411,3.2078,2745.5,2744.9,3.41072365]
[1738737592608,3.2078,2745.8,2744.9,3.41072365]
[1738737592809,3.2078,2745.5,2745.0,3.2814]
[1738737593007,0.00546767,2745.5,2745.0,3.2814]
[1738737593214,0.00546767,2745.5,2745.3,3.2078]
[1738737593413,0.00546767,2745.5,2745.3,8.2078]
[1738737593609,0.00546767,2745.5,2745.4,3.99325365]
[1738737593824,3.2078,2746.5,2745.4,8.41072365]
[1738737594116,3.2078,2746.5,2745.4,7.20104365]
[1738737594313,3.2078,2746.5,2745.7,3.79025]
[1738737594510,3.2078,2746.5,2745.7,3.2078]
[1738737594707,3.2078,2746.5,2746.0,0.0096569]
[1738737595309,3.21326767,2746.5,2746.0,0.0096569]
[1738737596418,0.00546767,2746.5,2746.0,0.0096569]
[1738737596616,0.00546767,2746.5,2746.0,3.2174569]
[1738737596914,0.00546767,2746.5,2746.0,0.0096569]
[1738737598209,3.21326767,2746.5,2746.0,0.0096569]
[1738737600114,0.00546767,2746.5,2746.0,0.0096569]
[1738737600317,0.00546767,2746.5,2746.4,3.2078]
[1738737600819,3.2078,2747.4,2746.4,5.0736]
[1738737601019,3.2078,2747.4,2746.5,3.2078]
[1738737601713,3.2078,2747.4,2746.8,3.2078]
[1738737601917,3.2078,2747.4,2746.7,1.83]
[1738737602112,3.21133712,2747.4,2746.8,0.00546767]
[1738737602313,3.2078,2747.1,2746.8,0.00546767]
[1738737603315,3.21133712,2747.4,2746.8,0.00546767]
[1738737603719,3.21133712,2747.4,2746.8,3.21326767]
[1738737604022,3.21133712,2747.4,2746.8,3.79547767]
[1738737604321,3.21133712,2747.4,2746.8,0.00546767]
[1738737604523,3.21133712,2747.4,2746.8,3.21326767]
[1738737605225,3.21133712,2747.4,2746.8,3.79548767]
[1738737605523,0.00353712,2747.4,2746.8,3.21326767]
[1738737605713,3.21133712,2747.4,2746.8,0.00546767]
[1738737607017,3.2078,2747.1,2746.8,0.00546767]
[1738737607415,3.21133712,2747.4,2746.8,0.00546767]
[1738737608317,0.00353712,2747.4,2746.8,0.00546767]
[1738737608522,0.00353712,2747.4,2747.1,3.2078]
[1738737608723,0.00353712,2747.4,2747.2,0.0736]
[1738737611824,3.2078,2748.3,2747.2,5.0736]
[1738737612123,3.2078,2748.3,2747.6,3.2078]
[1738737612316,3.2078,2748.3,2747.6,3.78985]
[1738737612520,0.5456,2748.8,2748.2,3.2078]
[1738737612715,3.2078,2747.7,2746.0,0.0096569]
[1738737613015,3.2078,2745.3,2743.3,0.364]
[1738737613215,3.2078,2744.1,2743.3,3.1898]
[1738737613517,3.2078,2744.2,2743.4,0.0728]
[1738737613716,3.2078,2744.5,2743.6,3.2078]
[1738737614120,0.00543385,2744.1,2743.9,3.2078]
[1738737614416,3.2078,2745.5,2744.0,4.72719245]
[1738737614621,3.2078,2745.2,2744.1,3.2078]
[1738737615020,3.2078,2744.9,2744.1,3.2078]
[1738737615725,3.2078,2744.6,2744.2,0.00545752]
[1738737616317,3.2078,2744.3,2744.2,0.00545752]
[1738737618826,3.2078,2744.6,2744.2,5.00545752]
[1738737619033,3.2078,2744.9,2744.6,0.5827]
[1738737619225,3.2078,2744.9,2744.3,3.41072365]
[1738737619529,3.2078,2744.9,2744.4,1.959]
[1738737619721,3.2078,2745.4,2744.8,3.2078]
[1738737620229,3.2078,2745.4,2744.9,0.0728]
[1738737620433,3.2078,2745.7,2744.9,0.65543]
[1738737620623,3.2078,2745.7,2744.9,0.0728]
[1738737621029,3.2078,2745.7,2745.0,2.0248]
[1738737621532,3.2078,2745.7,2745.1,0.58259]
[1738737621728,3.2078,2746.3,2745.0,10.2326]
[1738737621932,3.2078,2746.3,2745.1,4.77783794]
[1738737622127,3.2078,2746.3,2745.4,0.58797752]
[1738737622634,3.2078,2746.3,2745.4,0.00545752]
[1738737622931,3.2078,2746.3,2745.7,0.58246]
[1738737623328,3.2078,2746.3,2745.8,0.0728]
[1738737623727,3.2078,2746.8,2745.8,5.65523]
[1738737623927,3.2078,2746.8,2745.9,0.58242]
[1738737624127,3.2078,2746.8,2745.4,0.37025752]
[1738737624128,3.2078,2742.8,2741.0,10.74625057]
[1738737624322,3.2078,2742.0,2741.1,3.55792365]
[1738737624525,4.73677652,2746.7,2741.7,3.2078]
[1738737624526,3.2078,2742.6,2741.7,3.2078]
[1738737624732,3.2078,2742.6,2741.2,6.41723548]
[1738737624733,3.2078,2743.0,2742.1,6.61852365]
[1738737624930,3.2078,2743.6,2742.7,3.99381365]
[1738737625229,2.07049788,2743.6,2742.9,3.2078]
[1738737625428,3.2078,2744.0,2743.5,0.58293]
[1738737625621,0.5663,2744.9,2743.2,3.41072365]
[1738737625622,0.00547066,2743.4,2743.3,3.2078]
[1738737625830,0.00547066,2743.4,2743.3,0.58297]
[1738737626028,3.2078,2743.7,2743.6,0.58291]
[1738737626634,3.2078,2744.0,2743.7,0.58287]
[1738737626833,3.2078,2744.6,2743.9,3.2078]
[1738737627134,3.2078,2745.4,2744.2,6.61852365]
[1738737627331,3.2078,2745.4,2744.3,2.3772]
[1738737627522,3.2078,2745.4,2744.3,7.21969673]
[1738737628029,3.2078,2745.1,2744.3,7.21969673]
[1738737628731,3.2078,2745.1,2744.4,2.224]
[1738737628933,3.2078,2745.1,2744.5,3.2078]
[1738737629134,3.2078,2745.4,2744.5,3.2078]
[1738737629432,3.2078,2745.4,2744.5,3.79052]
[1738737630836,3.2078,2745.4,2744.5,3.2078]
[1738737631035,3.2078,2744.4,2742.4,0.3648]
[1738737631329,6.61852365,2742.6,2741.4,0.1472]
[1738737631530,6.61852365,2742.6,2741.0,0.3648]
[1738737631531,3.2078,2741.8,2741.0,0.3648]
[1738737631840,3.2078,2741.5,2740.8,5.74572365]
[1738737632134,3.7325,2742.4,2740.8,5.74572365]
[1738737632135,3.2078,2741.4,2740.9,0.3648]
[1738737632333,0.00547066,2741.4,2740.9,0.37027066]
[1738737632530,3.21327066,2741.4,2740.9,5.00547066]
[1738737632730,0.00547066,2741.4,2740.9,5.00547066]
[1738737632932,3.2078,2741.1,2740.9,5.00547066]
[1738737633139,0.00547066,2741.4,2740.9,5.00547066]
[1738737633735,3.21327066,2741.4,2740.9,5.00547066]
[1738737634133,3.2078,2741.1,2740.9,5.00547066]
[1738737635945,3.2078,2741.1,2740.9,0.00547066]
[1738737637437,3.2078,2741.1,2740.9,5.00547066]
[1738737639742,3.21327066,2741.4,2740.9,8.79674066]
[1738737639942,3.21327066,2741.4,2741.0,5.33296004]
[1738737640142,3.21327066,2741.4,2741.0,4.74950004]
[1738737640344,3.21327066,2741.4,2741.0,5.0]
[1738737640543,3.21327066,2741.4,2741.1,4.77487685]
[1738737640944,3.21327066,2741.4,2741.2,0.1472]
[1738737641445,3.21327066,2741.4,2741.2,5.1472]
[1738737642243,3.2078,2742.1,2741.2,5.1472]
[1738737642547,3.2078,2741.8,2741.3,0.58338]
[1738737642748,3.2078,2741.8,2741.4,0.58336]
[1738737642939,3.2078,2742.5,2741.3,5.17295205]
[1738737643135,0.85586794,2742.9,2742.2,3.2078]
[1738737643344,3.2078,2743.7,2742.3,5.4848]
[1738737643640,3.2078,2743.4,2742.4,3.2078]
[1738737643837,3.2078,2743.4,2743.2,0.58299]
[1738737644043,3.2078,2743.4,2742.7,3.2078]
[1738737644548,3.2078,2743.4,2742.8,4.68236174]
[1738737644746,3.2078,2743.4,2742.4,3.93815]
[1738737644943,3.2078,2743.4,2742.5,0.58312]
[1738737645145,3.2078,2743.4,2742.4,8.355]
[1738737645349,3.2078,2743.7,2742.5,4.8007598]
[1738737645542,3.2078,2743.7,2743.3,0.58297]
[1738737645740,3.7325,2744.3,2743.4,0.73015]
[1738737645741,3.2078,2744.3,2743.4,0.73015]
[1738737646147,3.2078,2744.0,2743.4,0.73015]
[1738737646646,3.2078,2744.0,2743.4,0.15267066]
[1738737646944,3.2078,2744.0,2743.4,0.73560066]
[1738737647353,3.2078,2744.0,2743.5,7.87717349]
[1738737647552,3.2078,2744.0,2743.7,0.58288]
[1738737647847,3.2078,2744.0,2743.6,2.6148]
[1738737648044,3.2078,2744.0,2743.9,0.58284]
[1738737648648,3.2078,2744.0,2743.9,5.58284]
[1738737649146,3.2078,2744.7,2743.9,5.0]
[1738737649349,3.2078,2744.7,2744.2,0.58278]
[1738737649949,3.2078,2744.7,2744.3,0.58275]
[1738737650245,3.2078,2744.7,2744.2,0.58277]
[1738737650446,3.2078,2744.7,2744.0,5.1472]
[1738737650652,3.2078,2744.7,2744.1,7.89061135]
[1738737651054,3.2078,2744.7,2744.5,0.5827]
[1738737651247,3.2078,2744.7,2744.4,0.58273]
[1738737651650,3.2078,2745.0,2744.5,0.58272]
[1738737651846,3.2078,2745.0,2744.2,0.512]
[1738737652048,3.2078,2745.0,2744.5,4.77219252]
[1738737652247,3.2078,2745.7,2744.4,3.2078]
[1738737652453,3.2078,2745.4,2744.9,0.58262]
[1738737652656,3.2078,2745.4,2745.0,2.7886]
[1738737652856,3.2078,2745.4,2745.1,0.1472]
[1738737653057,3.2078,2745.4,2745.1,4.15117641]
[1738737653252,3.2078,2745.4,2745.1,9.15117641]
[1738737653456,3.2078,2745.4,2745.1,0.1472]
[1738737654450,3.2078,2745.4,2745.1,5.1472]
[1738737654655,3.2078,2746.1,2745.4,0.58253]
[1738737654850,3.2078,2746.1,2745.4,3.2078]
[1738737655155,3.2078,2746.4,2746.0,0.5824]
[1738737655555,3.2078,2746.4,2746.0,0.7296]
[1738737655948,3.2078,2746.4,2746.3,0.58234]
[1738737656153,10.94920816,2747.2,2746.1,5.61539641]
[1738737656154,3.2078,2747.0,2746.1,5.61539641]
[1738737656346,3.7325,2746.9,2746.1,6.19776641]
[1738737657150,3.7325,2746.6,2746.0,0.1472]
[1738737657448,3.7325,2746.2,2746.0,0.1472]
[1738737657951,3.2078,2746.4,2746.0,0.1472]
[1738737658158,6.9403,2746.4,2746.0,0.1472]
[1738737659355,3.2078,2746.7,2746.0,0.1472]
[1738737659550,3.7325,2746.6,2746.0,0.1472]
[1738737659746,3.7325,2746.6,2746.0,0.72959]
[1738737659952,3.2078,2746.7,2746.0,0.1472]
[1738737660348,3.2078,2746.7,2746.2,0.58234]
[1738737660559,3.2078,2746.7,2746.4,0.58231]
[1738737660761,3.2078,2747.5,2746.5,0.58229]
[1738737660954,3.7325,2747.3,2746.5,0.58229]
[1738737661153,3.7325,2747.3,2746.6,0.72947]
[1738737661353,3.2078,2747.5,2746.7,0.58224]
[1738737661553,3.7325,2747.4,2746.7,0.58224]
[1738737661756,6.9403,2747.5,2746.6,3.3604606]
[1738737661954,3.7325,2747.4,2746.6,0.1526606]
[1738737662259,3.7325,2747.3,2746.6,0.1526606]
[1738737662464,3.7325,2747.3,2746.6,0.7349306]
[1738737662758,3.7325,2747.3,2746.6,0.1526606]
[1738737662957,3.2078,2747.5,2746.7,7.91185298]
[1738737663263,3.2078,2747.5,2746.8,2.179]
[1738737663264,3.7325,2747.4,2746.8,2.179]
[1738737663852,3.2078,2747.5,2746.8,2.179]
[1738737663853,3.7325,2747.3,2746.8,2.179]
[1738737664058,3.7325,2747.1,2746.8,2.179]
[1738737664659,3.7325,2747.1,2746.7,3.2078]
[1738737665761,1.1172,2748.1,2747.1,0.58216]
[1738737665762,3.2078,2747.9,2747.1,0.58216]
[1738737666060,2.32199999,2747.9,2747.1,0.58216]
[1738737666260,11.53091816,2749.3,2747.2,5.41638024]
[1738737666261,3.2078,2748.5,2747.2,5.41638024]
[1738737666464,2.32199999,2748.1,2747.3,0.58212]
[1738737666669,2.32199999,2748.1,2747.4,0.5821]
[1738737666961,2.32199999,2748.1,2747.4,5.23455799]
[1738737667265,2.32199999,2748.1,2747.6,0.58205]
[1738737667469,2.32199999,2748.1,2747.5,4.65791859]
[1738737667670,2.32199999,2748.1,2747.5,5.23998859]
[1738737667966,3.2078,2748.2,2747.6,0.58206]
[1738737668168,3.2078,2748.2,2747.6,5.41848076]
[1738737668366,3.2078,2748.2,2747.6,8.04422076]
[1738737668767,3.2078,2748.2,2747.6,8.62628076]
[1738737669259,3.2078,2748.2,2747.6,8.04422076]
[1738737669461,3.2078,2748.2,2747.8,0.582]
[1738737669673,3.2078,2748.2,2747.9,0.58199]
[1738737669967,0.5344,2748.8,2748.2,0.58192]
[1738737669968,3.2078,2748.7,2748.2,0.58192]
[1738737670371,3.2078,2749.0,2748.3,3.2078]
[1738737670562,3.2078,2749.0,2748.3,7.98020414]
[1738737670865,3.2078,2749.0,2748.4,0.58189]
[1738737671274,3.2078,2749.0,2748.5,4.89321644]
[1738737671569,3.7959,2749.8,2748.5,0.72906]
[1738737671865,2.32199999,2749.3,2748.6,8.56501012]
[1738737672272,2.32199999,2749.3,2748.7,0.58183]
[1738737672467,2.32199999,2749.3,2748.7,0.0054606]
[1738737672678,2.32199999,2748.8,2747.9,3.2078]
[1738737672876,3.2078,2745.2,2743.4,0.58295]
[1738737673181,3.2078,2744.2,2743.5,0.0728]
[1738737673487,0.5394,2745.1,2744.1,3.2078]
[1738737673672,3.2078,2745.5,2744.9,3.2078]
[1738737673976,0.577,2746.1,2744.7,3.2078]
[1738737674276,0.577,2746.1,2744.5,3.42139641]
[1738737674277,2.4713,2746.1,2745.0,4.76754192]
[1738737674475,3.2078,2746.6,2745.1,3.2078]
[1738737674682,3.2078,2746.6,2745.5,3.2078]
[1738737674976,0.00545773,2745.7,2745.2,3.5726]
[1738737675181,0.00545773,2745.7,2745.6,4.7777235]
[1738737675376,0.00545773,2745.7,2745.2,8.3503235]
[1738737675583,0.00545773,2745.7,2745.3,2.228]
[1738737677183,0.00545773,2745.7,2745.4,4.7468676]
[1738737677378,0.00545773,2745.7,2745.3,2.228]
[1738737678176,3.21325773,2745.7,2745.2,0.0054606]
[1738737681683,0.00545773,2745.7,2745.3,3.2078]
[1738737682085,0.00545773,2745.7,2745.4,4.68647724]
[1738737682381,0.00545773,2745.7,2745.3,3.2078]
[1738737682583,0.00545773,2745.7,2741.3,0.3648]
[1738737682584,3.2078,2743.1,2741.3,0.3648]
[1738737682779,1.45667,2744.8,2740.9,0.1518606]
[1738737682780,3.2078,2741.9,2740.9,0.1518606]
[1738737683080,3.2078,2741.6,2740.9,0.1518606]
[1738737683481,3.2078,2741.6,2740.9,0.5166606]
[1738737683676,3.2078,2741.7,2740.9,0.5166606]
[1738737683875,3.2078,2741.7,2741.0,3.2078]
[1738737684077,3.2078,2741.3,2741.0,0.37027066]
[1738737684276,3.2078,2741.3,2741.0,0.00547066]
[1738737684484,3.2078,2741.3,2741.0,0.37027066]
[1738737684681,3.2078,2741.3,2741.0,0.00547066]
[1738737684981,3.2078,2741.3,2740.0,0.1518606]
[1738737685285,3.2078,2740.7,2740.0,0.1518606]
[1738737685487,3.2078,2740.4,2740.0,0.1518606]
[1738737686384,3.2078,2740.4,2740.0,0.5166606]
[1738737691285,3.2078,2740.7,2740.1,3.2078]
[1738737691584,3.2078,2740.4,2740.0,0.1518606]
[1738737692090,3.2078,2740.4,2740.0,0.5166606]
[1738737692487,3.2078,2740.1,2740.0,0.5166606]
[1738737692687,3.2078,2740.1,2740.0,0.1518606]
[1738737692889,3.2078,2740.1,2740.0,0.5166606]
[1738737693488,3.2078,2740.4,2740.0,0.5166606]
[1738737693791,3.2078,2740.4,2740.0,0.1518606]
[1738737693988,3.2078,2740.4,2740.0,0.5166606]
[1738737696497,2.843,2740.7,2740.2,3.2078]
[1738737696786,3.2078,2741.4,2740.6,3.2078]
[1738737697193,3.2078,2741.4,2740.7,0.1518606]
[1738737697394,3.2078,2741.4,2740.8,2.226]
[1738737698189,3.2078,2741.4,2740.9,4.77444958]
[1738737698585,3.2078,2741.4,2740.9,5.35791958]
[1738737698891,3.2078,2741.4,2740.9,4.77444958]
[1738737699395,3.2078,2741.4,2741.0,0.58346]
[1738737699596,3.2078,2741.4,2741.1,0.58342]
[1738737699894,3.2078,2741.4,2741.1,9.84583889]
[1738737700093,0.00547066,2741.5,2741.1,5.0]
[1738737700296,3.2078,2742.1,2741.3,0.58338]
[1738737700591,3.2078,2742.1,2741.7,3.2078]
[1738737700997,3.2078,2742.1,2741.8,0.1518606]
[1738737701489,3.2078,2742.1,2741.7,3.2078]
[1738737701490,8.2078,2742.1,2741.7,0.00547066]
[1738737701684,3.2078,2740.6,2738.7,0.3648]
[1738737701890,3.631,2741.4,2739.3,6.047]
[1738737701891,3.2078,2739.4,2739.3,6.047]
[1738737702190,3.2078,2739.4,2738.5,0.1506606]
[1738737702389,3.2078,2739.4,2739.3,6.047]
[1738737702596,3.2078,2740.1,2739.3,9.2548]
[1738737702791,3.2078,2740.1,2739.2,0.1506606]
[1738737702998,3.2078,2740.1,2740.0,6.047]
[1738737703995,3.2078,2740.2,2740.0,6.047]
[1738737704196,3.2078,2740.2,2739.4,3.2078]
[1738737704397,3.2078,2740.2,2740.1,6.047]
[1738737706700,0.00547066,2740.4,2740.1,6.047]
[1738737706905,0.00547066,2740.4,2740.3,6.047]
[1738737708702,0.00547066,2740.4,2739.8,0.1506606]
[1738737708902,3.2078,2740.2,2739.8,0.1506606]
[1738737709303,3.2078,2740.2,2740.1,6.047]
[1738737709506,0.00547066,2740.4,2740.1,6.047]
[1738737709707,0.00547066,2740.4,2740.3,6.047]
[1738737711608,3.21327066,2740.4,2739.5,3.21327066]
[1738737711806,3.21327066,2740.4,2740.0,6.047]
[1738737712002,3.21327066,2740.4,2740.3,6.047]
[1738737712800,3.21327066,2740.4,2739.5,3.21327066]
[1738737713003,3.21327066,2740.4,2740.2,6.047]
[1738737717611,3.21327066,2740.4,2739.5,3.21327066]
[1738737717815,3.21327066,2740.4,2740.1,6.047]
[1738737718019,3.21327066,2740.4,2740.2,6.047]
[1738737718813,3.21327066,2740.4,2740.3,6.047]
[1738737719309,0.00547066,2740.4,2740.3,6.047]
[1738737719814,0.00547066,2740.4,2740.0,0.1506606]
[1738737720115,3.2078,2740.2,2740.0,0.1506606]
[1738737720616,3.2078,2740.2,2740.0,6.047]
[1738737720915,3.2078,2740.2,2740.1,6.047]
[1738737721610,0.00547066,2740.4,2740.1,6.047]
[1738737721815,3.2078,2740.2,2740.0,0.1506606]
[1738737722311,3.2078,2740.3,2740.1,6.047]
[1738737722507,3.2078,2740.3,2740.0,0.1506606]
[1738737722715,3.2078,2740.3,2740.2,6.047]
[1738737723814,0.00547066,2740.4,2740.2,6.047]
[1738737724014,0.00547066,2740.4,2740.1,3.2078]
[1738737724015,0.00547066,2740.4,2740.3,6.047]
[1738737725111,0.00547066,2740.4,2740.3,8.184]
[1738737725514,3.2078,2740.8,2740.3,8.184]
[1738737725714,3.2078,2740.8,2740.7,6.047]
[1738737726014,3.00541488,2742.0,2740.7,6.047]
[1738737726015,3.2078,2741.2,2740.7,6.047]
[1738737726218,3.2078,2741.5,2741.3,6.047]
[1738737726512,3.2078,2741.5,2740.9,3.2078]
[1738737726718,3.2078,2741.5,2741.4,6.047]
[1738737727717,3.2078,2741.5,2741.1,0.00547066]
[1738737727910,3.2078,2741.5,2741.4,6.047]
[1738737728118,0.00547066,2741.7,2741.4,6.047]
[1738737728415,0.00547066,2741.7,2741.6,6.047]
[1738737729015,3.2078,2742.1,2741.6,8.165]
[1738737729214,3.2078,2742.1,2742.0,6.047]
[1738737730214,2.41447066,2742.1,2742.0,6.047]
[1738737730523,0.00547066,2742.3,2742.0,11.047]
[1738737730726,0.00547066,2742.3,2741.8,3.3584606]
[1738737730916,0.00547066,2742.3,2742.2,6.047]
[1738737731922,3.2078,2742.8,2742.2,6.047]
[1738737732122,10.94920816,2743.0,2742.8,6.047]
[1738737732323,14.15700816,2743.0,2742.9,6.047]
[1738737733610,14.15700816,2743.0,2742.9,0.66561314]
[1738737734117,23.44097827,2743.1,2742.9,0.66561314]
[1738737734314,23.44097827,2743.1,2742.7,0.00547066]
[1738737734315,23.44097827,2743.1,2743.0,0.66561314]
[1738737735318,23.44097827,2743.1,2743.0,0.81627374]
[1738737737217,21.93724978,2743.1,2743.0,0.81627374]
[1738737737418,20.43999589,2743.1,2743.0,4.02407374]
[1738737737726,15.70098177,2743.1,2743.0,4.02407374]
[1738737737920,15.26771903,2744.1,2742.7,0.00547066]
[1738737737921,3.2078,2743.5,2742.7,0.00547066]